fUSD/lending_fUSD_20250313
["ID","MTS","AMOUNT","RATE_DAILY","PERIOD"]
[356084174,1741889486430,-500.0,0.00027397,18]
[356084175,1741889486439,-500.0,0.00027397,18]
[356084176,1741889486448,-500.0,0.00027397,18]
[356084177,1741889486457,-507.61,0.00027397,18]
[356084178,1741889486466,-529.5976147,0.00027397,18]
[356084179,1741889486476,-500.0,0.00027397,18]
[356084180,1741889486485,-182.88,0.00027397,18]
[356084181,1741889486494,-500.0,0.00027397,18]
[356084182,1741889486503,-572.09,0.00027397,18]
[356084183,1741889486513,-500.0,0.00027397,18]
[356084184,1741889486522,-500.0,0.00027397,18]
[356084185,1741889486532,-500.0,0.00027397,18]
[356084186,1741889486541,-500.0,0.00027397,18]
[356084187,1741889486550,-500.0,0.00027397,18]
[356084188,1741889486560,-500.0,0.00027397,18]
[356084189,1741889486569,-500.0,0.00027397,18]
[356084190,1741889486578,-549.65,0.00027397,18]
[356084191,1741889486587,-500.0,0.00027397,18]
[356084192,1741889486596,-500.0,0.00027397,18]
[356084193,1741889486605,-500.0,0.00027397,18]
[356084194,1741889486614,-500.0,0.00027397,18]
[356084195,1741889486623,-316.28,0.00027397,18]
[356084196,1741889486632,-500.0,0.00027397,18]
[356084197,1741889486643,-500.0,0.00027397,18]
[356084198,1741889486655,-500.0,0.00027397,18]
[356084199,1741889486664,-530.29,0.00027397,18]
[356084200,1741889486673,-500.0,0.00027397,18]
[356084201,1741889486684,-500.0,0.00027397,18]
[356084202,1741889486696,-500.0,0.00027397,18]
[356084203,1741889486707,-500.0,0.00027397,18]
[356084204,1741889486718,-500.0,0.00027397,18]
[356084205,1741889486728,-500.0,0.00027397,18]
[356084206,1741889486737,-500.0,0.00027397,18]
[356084207,1741889486747,-151.0,0.00027397,7]
[356084208,1741889486756,-226.24,0.00027397,18]
[356084209,1741889486765,-500.0,0.00027397,18]
[356084210,1741889486775,-208.43438306,0.00027397,18]
[356084211,1741889486786,-500.0,0.00027397,18]
[356084212,1741889486796,-151.0,0.00027397,7]
[356084213,1741889486805,-500.0,0.00027397,18]
[356084214,1741889486814,-500.0,0.00027397,18]
[356084215,1741889486824,-500.0,0.00027397,18]
[356084216,1741889486833,-500.0,0.00027397,18]
[356084217,1741889486843,-500.0,0.00027397,18]
[356084218,1741889486852,-500.0,0.00027397,18]
[356084219,1741889486862,-500.0,0.00027397,18]
[356084220,1741889486871,-500.0,0.00027397,18]
[356084221,1741889486880,-318.18,0.00027397,18]
[356084222,1741889486890,-500.0,0.00027397,18]
[356084223,1741889486899,-500.0,0.00027397,18]
[356084224,1741889486908,-500.0,0.00027397,18]
[356084225,1741889486917,-500.0,0.00027397,18]
[356084226,1741889486927,-318.33,0.00027397,18]
[356084227,1741889486936,-500.0,0.00027397,18]
[356084228,1741889486945,-500.0,0.00027397,18]
[356084229,1741889486955,-500.0,0.00027397,18]
[356084230,1741889486964,-500.0,0.00027397,18]
[356084231,1741889486974,-500.0,0.00027397,18]
[356084232,1741889486983,-1000.0,0.00027397,18]
[356084233,1741889486992,-500.0,0.00027397,18]
[356084234,1741889487002,-500.0,0.00027397,18]
[356084235,1741889487011,-1000.0,0.00027397,18]
[356084236,1741889487020,-500.0,0.00027397,18]
[356084237,1741889487030,-500.0,0.00027397,18]
[356084238,1741889487039,-500.0,0.00027397,18]
[356084239,1741889487048,-1000.0,0.00027397,18]
[356084240,1741889487057,-427.11,0.00027397,18]
[356084241,1741889487066,-500.0,0.00027397,18]
[356084242,1741889487075,-500.0,0.00027397,18]
[356084243,1741889487084,-500.0,0.00027397,18]
[356084244,1741889487093,-500.0,0.00027397,18]
[356084245,1741889487103,-500.0,0.00027397,18]
[356084246,1741889487112,-500.0,0.00027397,18]
[356084247,1741889487122,-500.0,0.00027397,18]
[356084248,1741889487131,-500.0,0.00027397,18]
[356084249,1741889487140,-500.0,0.00027397,18]
[356084250,1741889487149,-500.0,0.00027397,18]
[356084251,1741889487158,-500.0,0.00027397,18]
[356084252,1741889487167,-500.0,0.00027397,18]
[356084253,1741889487176,-500.0,0.00027397,18]
[356084254,1741889487186,-500.0,0.00027397,18]
[356084255,1741889487194,-151.0,0.00027397,7]
[356084256,1741889487204,-500.0,0.00027397,18]
[356084257,1741889487213,-500.0,0.00027397,18]
[356084258,1741889487222,-500.0,0.00027397,18]
[356084259,1741889487231,-500.0,0.00027397,18]
[356084260,1741889487240,-151.0,0.00027397,7]
[356084261,1741889487249,-500.0,0.00027397,18]
[356084262,1741889487258,-211.1456755,0.00027397,18]
[356084263,1741889487267,-500.0,0.00027397,18]
[356084264,1741889487278,-500.0,0.00027397,18]
[356084265,1741889487287,-500.0,0.00027397,18]
[356084266,1741889487297,-500.0,0.00027397,18]
[356084267,1741889487306,-500.0,0.00027397,18]
[356084268,1741889487315,-151.0,0.00027397,7]
[356084269,1741889487323,-500.0,0.00027397,18]
[356084270,1741889487332,-500.0,0.00027397,18]
[356084271,1741889487341,-500.0,0.00027397,18]
[356084272,1741889487350,-500.0,0.00027397,18]
[356084273,1741889487359,-500.0,0.00027397,18]
[356084274,1741889487369,-151.0,0.00027397,7]
[356084275,1741889487378,-500.0,0.00027397,18]
[356084276,1741889487387,-500.0,0.00027397,18]
[356084277,1741889487396,-500.0,0.00027397,18]
[356084278,1741889487405,-500.0,0.00027397,18]
[356084279,1741889487414,-500.0,0.00027397,18]
[356084280,1741889487424,-151.0,0.00027397,7]
[356084281,1741889487434,-164.02,0.00027397,18]
[356084282,1741889487443,-500.0,0.00027397,18]
[356084283,1741889487452,-500.0,0.00027397,18]
[356084284,1741889487462,-500.0,0.00027397,18]
[356084285,1741889487471,-500.0,0.00027397,18]
[356084286,1741889487480,-256.7,0.00027397,18]
[356084287,1741889487490,-500.0,0.00027397,18]
[356084288,1741889487499,-500.0,0.00027397,18]
[356084289,1741889487509,-500.0,0.00027397,18]
[356084290,1741889487518,-500.0,0.00027397,18]
[356084291,1741889487527,-151.0,0.00027397,7]
[356084292,1741889487537,-497.0,0.00027397,18]
[356084293,1741889487547,-500.0,0.00027397,18]
[356084294,1741889487557,-500.0,0.00027397,18]
[356084295,1741889487567,-500.0,0.00027397,18]
[356084296,1741889487576,-500.0,0.00027397,18]
[356084297,1741889487586,-500.0,0.00027397,18]
[356084298,1741889487595,-151.0,0.00027397,7]
[356084299,1741889487605,-500.0,0.00027397,18]
[356084300,1741889487615,-500.0,0.00027397,18]
[356084301,1741889487623,-500.0,0.00027397,18]
[356084302,1741889487632,-160.37,0.00027397,18]
[356084303,1741889487642,-500.0,0.00027397,18]
[356084304,1741889487651,-500.0,0.00027397,18]
[356084305,1741889487660,-151.0,0.00027397,7]
[356084306,1741889487670,-500.0,0.00027397,18]
[356084307,1741889487680,-500.0,0.00027397,18]
[356084308,1741889487689,-151.0,0.00027397,7]
[356084309,1741889487697,-341.02,0.00027397,18]
[356084310,1741889487709,-500.0,0.00027397,18]
[356084311,1741889487718,-500.0,0.00027397,18]
[356084312,1741889487727,-500.0,0.00027397,18]
[356084313,1741889487736,-151.0,0.00027397,7]
[356084314,1741889487746,-500.0,0.00027397,18]
[356084315,1741889487756,-500.0,0.00027397,18]
[356084316,1741889487765,-500.0,0.00027397,18]
[356084317,1741889487774,-631.48,0.00027397,18]
[356084318,1741889487787,-500.0,0.00027397,18]
[356084319,1741889487797,-500.0,0.00027397,18]
[356084320,1741889487806,-500.0,0.00027397,18]
[356084321,1741889487816,-151.0,0.00027397,7]
[356084322,1741889487826,-500.0,0.00027397,18]
[356084323,1741889487835,-500.0,0.00027397,18]
[356084324,1741889487844,-63.41901181,0.00027397,18]
[356084325,1741889487864,-441.87098819,0.00027397,18]
[356084326,1741889487874,-500.0,0.00027397,18]
[356084327,1741889487883,-500.0,0.00027397,18]
[356084328,1741889487892,-500.0,0.00027397,18]
[356084329,1741889487902,-500.0,0.00027397,18]
[356084330,1741889487912,-219.252406,0.00027397,7]
[356084331,1741889487922,-337.69,0.00027397,18]
[356084332,1741889487932,-500.0,0.00027397,18]
[356084333,1741889487941,-500.0,0.00027397,18]
[356084334,1741889487951,-500.0,0.00027397,18]
[356084335,1741889487961,-500.0,0.00027397,18]
[356084336,1741889487971,-500.0,0.00027397,18]
[356084337,1741889487980,-500.0,0.00027397,18]
[356084338,1741889487990,-500.0,0.00027397,18]
[356084339,1741889488000,-500.0,0.00027397,18]
[356084340,1741889488010,-254.12,0.00027397,18]
[356084341,1741889488020,-500.0,0.00027397,18]
[356084342,1741889488035,-500.0,0.00027397,18]
[356084343,1741889488045,-500.0,0.00027397,18]
[356084344,1741889488054,-500.0,0.00027397,18]
[356084345,1741889488064,-500.0,0.00027397,18]
[356084346,1741889488074,-500.0,0.00027397,18]
[356084347,1741889488084,-497.187658,0.00027397,18]
[356084348,1741889488094,-500.0,0.00027397,18]
[356084349,1741889488104,-500.0,0.00027397,18]
[356084350,1741889488114,-500.0,0.00027397,18]
[356084351,1741889488124,-500.0,0.00027397,18]
[356084352,1741889488134,-500.0,0.00027397,18]
[356084353,1741889488144,-500.0,0.00027397,18]
[356084354,1741889488154,-306.64,0.00027397,18]
[356084355,1741889488164,-500.0,0.00027397,18]
[356084356,1741889488174,-500.0,0.00027397,18]
[356084357,1741889488184,-500.0,0.00027397,18]
[356084358,1741889488194,-500.0,0.00027397,18]
[356084359,1741889488337,-500.0,0.00027397,18]
[356084360,1741889488374,-500.0,0.00027397,18]
[356084361,1741889488383,-500.0,0.00027397,18]
[356084362,1741889488392,-156.57,0.00027397,18]
[356084363,1741889488401,-500.0,0.00027397,18]
[356084364,1741889488410,-500.0,0.00027397,18]
[356084365,1741889488419,-500.0,0.00027397,18]
[356084366,1741889488428,-500.0,0.00027397,18]
[356084367,1741889488437,-500.0,0.00027397,18]
[356084368,1741889488446,-500.0,0.00027397,18]
[356084369,1741889488455,-639.56,0.00027397,18]
[356084370,1741889488464,-500.0,0.00027397,18]
[356084371,1741889488473,-500.0,0.00027397,18]
[356084372,1741889488482,-500.0,0.00027397,18]
[356084373,1741889488491,-500.0,0.00027397,18]
[356084374,1741889488501,-500.0,0.00027397,18]
[356084375,1741889488510,-500.0,0.00027397,18]
[356084376,1741889488519,-500.0,0.00027397,18]
[356084377,1741889488531,-500.0,0.00027397,18]
[356084378,1741889488539,-500.0,0.00027397,18]
[356084379,1741889488548,-269.04,0.00027397,18]
[356084380,1741889488557,-500.0,0.00027397,18]
[356084381,1741889488566,-500.0,0.00027397,18]
[356084382,1741889488575,-189.02,0.00027397,18]
[356084383,1741889488584,-500.0,0.00027397,18]
[356084384,1741889488593,-500.0,0.00027397,18]
[356084385,1741889488602,-500.0,0.00027397,18]
[356084386,1741889488610,-500.0,0.00027397,18]
[356084387,1741889488622,-502.64538376,0.00027397,18]
[356084388,1741889488631,-488.42725653,0.00027397,18]
[356084389,1741889488640,-579.71,0.00027397,18]
[356084390,1741889488649,-500.0,0.00027397,18]
[356084391,1741889488657,-647.93493013,0.00027397,18]
[356084392,1741889488666,-500.0,0.00027397,18]
[356084393,1741889488675,-500.0,0.00027397,18]
[356084394,1741889488684,-500.0,0.00027397,18]
[356084395,1741889488693,-500.0,0.00027397,18]
[356084396,1741889488702,-500.0,0.00027397,18]
[356084397,1741889488714,-500.0,0.00027397,18]
[356084398,1741889488723,-500.0,0.00027397,18]
[356084399,1741889488732,-500.0,0.00027397,18]
[356084400,1741889488743,-500.0,0.00027397,18]
[356084401,1741889488752,-500.0,0.00027397,18]
[356084402,1741889488762,-500.0,0.00027397,18]
[356084403,1741889488771,-529.36,0.00027397,18]
[356084404,1741889488784,-500.0,0.00027397,18]
[356084405,1741889488795,-274.25737738,0.00027397,18]
[356084406,1741889488808,-225.74262262,0.00027397,18]
[356084407,1741889488818,-500.0,0.00027397,18]
[356084408,1741889488827,-129.91538669,0.00027397,18]
[356084409,1741889488839,-370.08461331,0.00027397,18]
[356084410,1741889488848,-500.0,0.00027397,18]
[356084411,1741889488858,-500.0,0.00027397,18]
[356084412,1741889488867,-333.78500295,0.00027397,18]
[356084413,1741889488879,-166.21499705,0.00027397,18]
[356084414,1741889488888,-500.0,0.00027397,18]
[356084415,1741889488897,-500.0,0.00027397,18]
[356084416,1741889488906,-500.0,0.00027397,18]
[356084417,1741889488916,-500.0,0.00027397,18]
[356084418,1741889488925,-500.0,0.00027397,18]
[356084419,1741889488934,-500.0,0.00027397,18]
[356084420,1741889488943,-151.0,0.00027397,7]
[356084421,1741889488953,-151.0,0.00027397,7]
[356084422,1741889488962,-151.0,0.00027397,7]
[356084423,1741889488971,-151.0,0.00027397,7]
[356084424,1741889488980,-151.0,0.00027397,7]
[356084425,1741889488989,-151.0,0.00027397,7]
[356084426,1741889488999,-151.0,0.00027397,7]
[356084427,1741889489008,-151.0,0.00027397,7]
[356084428,1741889489018,-151.0,0.00027397,7]
[356084429,1741889489028,-151.0,0.00027397,7]
[356084430,1741889489037,-151.0,0.00027397,7]
[356084431,1741889489048,-151.0,0.00027397,7]
[356084432,1741889489057,-151.0,0.00027397,7]
[356084433,1741889489066,-151.0,0.00027397,7]
[356084434,1741889489075,-192.62196,0.00027397,7]
[356084435,1741889489084,-151.0,0.00027397,7]
[356084436,1741889489093,-151.0,0.00027397,7]
[356084437,1741889489102,-151.0,0.00027397,7]
[356084438,1741889489111,-2000.0,0.00027397,7]
[356084439,1741889489120,-500.0,0.00027399,18]
[356084440,1741889489130,-500.0,0.00027399,18]
[356084441,1741889489140,-500.0,0.00027399,18]
[356084442,1741889489150,-500.0,0.00027399,18]
[356084443,1741889489164,-500.0,0.00027399,18]
[356084444,1741889489173,-1500.0,0.000274,2]
[356084445,1741889489182,-1125.61591321,0.000274,2]
[356084446,1741889489195,-374.38408679,0.000274,2]
[356084447,1741889489204,-1500.0,0.000274,2]
[356084448,1741889489213,-818.2374487,0.000274,2]
[356084449,1741889489225,-681.7625513,0.000274,2]
[356084450,1741889489234,-1500.0,0.000274,2]
[356084451,1741889489243,-577.05913433,0.000274,2]
[356084452,1741889489254,-922.94086567,0.000274,2]
[356084453,1741889489263,-966.1019501,0.000274,2]
[356084454,1741889489274,-533.8980499,0.000274,2]
[356084455,1741889489285,-1500.0,0.000274,2]
[356084456,1741889489294,-1500.0,0.000274,2]
[356084457,1741889489303,-508.81,0.000274,2]
[356084458,1741889489312,-153.0,0.00027408,120]
[356084459,1741889489322,-500.0,0.00027413,2]
[356084460,1741889489331,-2000.0,0.00027418,7]
[356084461,1741889489342,-1000.0,0.00027424,7]
[356084462,1741889489352,-481.0919501,0.00027439,7]
[356084463,1741889489363,-1518.9080499,0.00027439,7]
[356084464,1741889489373,-500.0,0.00027441,2]
[356084465,1741889489382,-615.74,0.00027445,18]
[356084466,1741889489391,-500.0,0.00027446,18]
[356084467,1741889489400,-478.86,0.00027446,18]
[356084468,1741889489410,-500.0,0.00027446,18]
[356084469,1741889489419,-175.1,0.00027446,18]
[356084470,1741889489429,-614.39,0.00027446,18]
[356084471,1741889489439,-409.80651683,0.00027446,18]
[356084474,1741890337573,10000.0,8e-05,2]
[356084475,1741890337778,10000.0,8e-05,2]
[356084476,1741890337824,235.15879346,8e-05,2]
[356084479,1741890413647,564.84120654,9.7e-05,2]
[356084480,1741890413673,10000.0,9.7e-05,2]
[356084481,1741890413694,4492.36901202,9.7e-05,2]
[356084482,1741890492655,597.32639517,0.0001,2]
[356084483,1741890578367,-695.72,0.0002429,2]
[356084485,1741890578394,-500.0,0.00024976,7]
[356084487,1741890578420,-500.0,0.00024976,7]
[356084488,1741890578445,-1881.99999918,0.00025,7]
[356084489,1741890578469,-191.58704895,0.00025,2]
[356084491,1741890578496,-250.0,0.00025736,2]
[356084492,1741890578522,-739.6,0.0002575,2]
[356084494,1741890578548,-956.5009698,0.00025943,2]
[356084495,1741890578586,-1626.29473555,0.00025943,2]
[356084516,1741890632021,-445.61213266,0.00025943,2]
[356084522,1741890632136,-10605.53776503,0.00025943,2]
[356084523,1741890632147,-10266.05439696,0.00025943,2]
[356084524,1741890632157,-550.0,0.00025945,2]
[356084525,1741890632167,-150.0,0.00025945,2]
[356084526,1741890632178,-157.71,0.00025947,2]
[356084527,1741890632187,-1000.0,0.00026026,2]
[356084528,1741890632196,-245.4,0.00026133,30]
[356084529,1741890632205,-3286.08,0.00026208,2]
[356084530,1741890632214,-2000.0,0.00026236,2]
[356084531,1741890632224,-157.71,0.00026271,2]
[356084532,1741890632233,-600.0,0.00026322,2]
[356084533,1741890632242,-216.38,0.00026323,2]
[356084534,1741890632251,-6827.43,0.00026323,2]
[356084535,1741890632260,-9999.99,0.00026323,2]
[356084536,1741890632270,-372.32,0.00026323,2]
[356084537,1741890632281,-176.09,0.00026454,2]
[356084538,1741890632291,-1000.0,0.00026461,2]
[356084539,1741890632300,-314.63823285,0.00026461,2]
[356084540,1741890632311,-12364.66176715,0.00026461,2]
[356084541,1741890632320,-695.72,0.00026554,2]
[356084542,1741890632330,-157.71,0.00026596,2]
[356084543,1741890632339,-500.0,0.0002662,7]
[356084544,1741890632348,-350.0,0.0002662,7]
[356084545,1741890632358,-919.66,0.00026668,120]
[356084546,1741890632367,-200.0,0.00026697,2]
[356084547,1741890632377,-550.0,0.00026719,2]
[356084548,1741890632386,-150.0,0.00026719,2]
[356084549,1741890632396,-699.18,0.00026849,2]
[356084550,1741890632405,-169.97,0.0002686,2]
[356084551,1741890632415,-204.4041107,0.000269,4]
[356084552,1741890632424,-1689.28,0.000269,14]
[356084553,1741890632433,-157.71,0.0002692,2]
[356084554,1741890632443,-161.62938,0.0002717,39]
[356084555,1741890632452,-4800.0,0.000272,2]
[356084556,1741890632461,-157.71,0.00027244,2]
[356084557,1741890632470,-500.0,0.00027289,2]
[356084558,1741890632479,-500.0,0.00027289,2]
[356084559,1741890632489,-284.03,0.00027289,2]
[356084560,1741890632498,-30797.05052134,0.0002729,3]
[356084561,1741890632509,-427.97595981,0.0002729,3]
[356084562,1741890632520,-1391.08289891,0.0002729,3]
[356084563,1741890632534,-926.10022701,0.0002729,3]
[356084564,1741890632546,-2246.1,0.0002729,3]
[356084565,1741890632557,-1444.30324101,0.0002729,3]
[356084566,1741890632568,-5288.49996885,0.0002729,3]
[356084567,1741890632587,-1079.31057311,0.0002729,3]
[356084568,1741890632601,-4623.25262965,0.0002729,3]
[356084569,1741890632613,-518.94,0.0002729,3]
[356084571,1741890632624,-9158.82591016,0.0002729,3]
[356084619,1741890638205,-3602.89999996,0.0002729,3]
[356084620,1741890638217,-3886.81562886,0.0002729,3]
[356084621,1741890638228,-9245.0,0.0002729,3]
[356084622,1741890638240,-13580.98115534,0.0002729,3]
[356084623,1741890638259,-2115.47849276,0.0002729,3]
[356084624,1741890638270,-1283.475,0.0002729,3]
[356084625,1741890638282,-403.23899674,0.0002729,3]
[356084626,1741890638294,-21229.59006756,0.0002729,3]
[356084627,1741890638352,-18027.20800001,0.0002729,3]
[356084628,1741890638364,-1038.9492359,0.0002729,3]
[356084629,1741890638376,-484.25820093,0.0002729,3]
[356084650,1741890640063,-437.01,0.00026455,120]
[356084651,1741890640073,-7660.60791,0.0002729,3]
[356084652,1741890640122,-13253.22423378,0.0002729,3]
[356084653,1741890640135,-16162.0,0.0002729,3]
[356084654,1741890640183,-557.79275677,0.0002729,3]
[356084655,1741890640296,-462.99325767,0.0002729,3]
[356084656,1741890640308,-615.08089194,0.0002729,3]
[356084657,1741890640355,-1652.3208,0.0002729,3]
[356084658,1741890640367,-649.84901329,0.0002729,3]
[356084659,1741890640378,-844.34473846,0.0002729,3]
[356084660,1741890640389,-927.740244,0.0002729,3]
[356084661,1741890640400,-1257.4008,0.0002729,3]
[356084662,1741890640411,-765.1728716,0.0002729,3]
[356084663,1741890640423,-1072.43457973,0.0002729,3]
[356084664,1741890640438,-720.67344272,0.0002729,3]
[356084665,1741890640475,-864.85875013,0.0002729,3]
[356084698,1741890643176,-5013.44467986,0.0002729,3]
[356084706,1741890643248,-144553.52184514,0.0002729,3]
[356084707,1741890643258,-777.24,0.00027299,2]
[356084708,1741890643267,-500.0,0.00027299,2]
[356084709,1741890643276,-500.0,0.00027299,2]
[356084710,1741890643285,-251.27683042,0.00027299,2]
[356084711,1741890643295,-500.0,0.00027299,2]
[356084712,1741890643304,-307.15406909,0.00027299,2]
[356084713,1741890643313,-526.15277047,0.00027299,2]
[356084714,1741890643323,-300.0,0.00027299,2]
[356084715,1741890643332,-267.34482118,0.00027299,2]
[356084716,1741890643341,-901743.50631191,0.000273,18]
[356084717,1741890643352,-3000.0,0.000273,18]
[356084718,1741890643367,-18470.07539997,0.000273,18]
[356084719,1741890643378,-295.848,0.000273,18]
[356084720,1741890643389,-15931.76709714,0.000273,18]
[356084735,1741890646138,-2564.51728845,0.000273,18]
[356084736,1741890646186,-724.4477605,0.000273,18]
[356084737,1741890646205,-4827.86045042,0.000273,18]
[356084738,1741890646216,-1494.35,0.000273,18]
[356084739,1741890646228,-6914957.09059873,0.000273,18]
[356084740,1741890646258,-4799.87213554,0.000273,18]
[356084741,1741890646320,-1512.43684428,0.000273,18]
[356084744,1741890681028,-13288.40906322,0.000291,30]
[356084745,1741890681065,-150.0,0.000291,30]
[356084746,1741890681106,-151119.2131584,0.000291,120]
[356084747,1741890681146,-1016.9389171,0.000291,30]
[356084748,1741890681183,-34366.25391364,0.000291,30]
[356084749,1741890681220,-5680.25872631,0.000291,30]
[356084750,1741890681256,-6841.87029876,0.000291,120]
[356084751,1741890681291,-5268.10001035,0.000291,60]
[356084752,1741890681326,-166.0,0.000291,120]
[356084753,1741890681361,-386.74590973,0.000291,120]
[356084754,1741890681396,-50000.0,0.000291,30]
[356084755,1741890681431,-762.51507252,0.000291,120]
[356084756,1741890681465,-4848.24653416,0.000291,120]
[356084757,1741890681500,-820.7587184,0.000291,120]
[356084758,1741890681533,-5000.0,0.000291,31]
[356084759,1741890740124,-615.0,0.00027397,120]
[356084760,1741890740176,-596.60257256,0.00027467,30]
[356084761,1741890740226,-5002.05098,0.0002766,30]
[356084762,1741890740272,-200.0,0.00028,120]
[356084763,1741890740318,-159.07803774,0.00028392,30]
[356084764,1741890740359,-934.35743544,0.00028392,30]
[356084765,1741890740405,-4908.74334932,0.0002849,30]
[356084766,1741890740453,-513.255798,0.00028551,120]
[356084767,1741890740496,-539.35,0.000286,31]
[356084768,1741890740536,-539.35,0.000286,31]
[356084769,1741890740577,-539.35,0.000286,31]
[356084770,1741890740618,-539.35,0.000286,31]
[356084771,1741890740663,-539.35,0.000286,31]
[356084772,1741890740971,-539.35,0.000286,31]
[356084773,1741890741028,-539.35,0.000286,31]
[356084774,1741890741068,-539.35,0.000286,31]
[356084775,1741890741108,-539.35,0.000286,31]
[356084776,1741890741155,-539.35,0.000286,31]
[356084777,1741890741194,-539.35,0.000286,31]
[356084778,1741890741235,-539.35,0.000286,31]
[356084779,1741890741273,-539.35,0.000286,31]
[356084780,1741890741312,-539.35,0.000286,31]
[356084781,1741890741351,-539.35,0.000286,31]
[356084782,1741890741387,-539.35,0.000286,31]
[356084783,1741890741424,-150.0,0.00028704,120]
[356084784,1741890741459,-165.867422,0.00028786,30]
[356084785,1741890741495,-150.0,0.00028861,120]
[356084786,1741890741531,-1800.0,0.00029,30]
[356084787,1741890741565,-200.0,0.00029,120]
[356084788,1741890741600,-2775.1520013,0.00029099,30]
[356084789,1741890741635,-50000.0,0.00029099,31]
[356084790,1741890741669,-50000.0,0.00029099,32]
[356084791,1741890741705,-50000.0,0.00029099,33]
[356084792,1741890741743,-150.0,0.00029263,120]
[356084793,1741890741783,-437.01,0.00029762,120]
[356084794,1741890741821,-539.35,0.000299,31]
[356084795,1741890741861,-539.35,0.000299,31]
[356084796,1741890741903,-539.35,0.000299,31]
[356084797,1741890741944,-539.35,0.000299,31]
[356084798,1741890741982,-539.35,0.000299,31]
[356084799,1741890742021,-539.35,0.000299,31]
[356084800,1741890742058,-539.35,0.000299,31]
[356084801,1741890742096,-539.35,0.000299,31]
[356084802,1741890742139,-539.35,0.000299,31]
[356084803,1741890742181,-539.35,0.000299,31]
[356084804,1741890742223,-539.35,0.000299,31]
[356084805,1741890742261,-539.35,0.000299,31]
[356084806,1741890742300,-539.35,0.000299,31]
[356084807,1741890742343,-539.35,0.000299,31]
[356084808,1741890742384,-539.35,0.000299,31]
[356084809,1741890742426,-539.35,0.000299,31]
[356084810,1741890742467,-539.35,0.000299,31]
[356084811,1741890742506,-539.35,0.000299,31]
[356084812,1741890742545,-539.35,0.000299,31]
[356084813,1741890742581,-539.35,0.000299,31]
[356084814,1741890742616,-539.35,0.000299,31]
[356084815,1741890742656,-539.35,0.000299,31]
[356084816,1741890742693,-539.35,0.000299,31]
[356084817,1741890742728,-539.35,0.000299,31]
[356084818,1741890742765,-215.0266111,0.0003,120]
[356084819,1741890742799,-1500.0,0.0003,120]
[356084820,1741890742832,-167.2551229,0.0003,60]
[356084821,1741890742866,-900.0,0.0003,31]
[356084822,1741890742903,-154.75765377,0.0003,120]
[356084823,1741890742937,-1047.6084627,0.0003,30]
[356084824,1741890742972,-899.99999909,0.0003,31]
[356084825,1741890743016,-200.43059377,0.0003,120]
[356084826,1741890743062,-200.0,0.0003,120]
[356084827,1741890743101,-919.66,0.00030001,120]
[356084828,1741890743141,-150.0,0.0003009,120]
[356084829,1741890743179,-150.0,0.00030115,120]